[Event "GER-ch Blitz 2019"]
[Site "Magdeburg"]
[Date "2019.05.25"]
[Round "11.7"]
[White "Svane, Frederik"]
[Black "Braeuning, Rudolf Wilhelm"]
[Result "1-0"]
[ECO "B36"]
[WhiteElo "2342"]
[BlackElo "2285"]
[Annotator "NA"]
[PlyCount "93"]
[EventDate "2019.05.25"]
[EventType "tourn"]
[EventCountry "GER"]
[Tiebreak "Number of wins+Number of black wins"]
[SourceTitle "playchess.com"]
[Source "ChessBase"]
[SourceQuality "1"]
[TimeControl "180+2"]

1. e4 {[%emt 0:00:00]} c5 {[%emt 0:00:00]} 2. Nf3 {[%emt 0:00:01]} g6 {[%emt 0:
00:00]} 3. d4 {[%emt 0:00:02]} cxd4 {[%emt 0:00:01]} 4. Nxd4 {[%emt 0:00:01]}
Nc6 {[%emt 0:00:00]} 5. c4 {[%emt 0:00:01]} Nf6 {[%emt 0:00:02]} 6. Nc3 {
[%emt 0:00:01]} d6 {[%emt 0:00:01]} 7. Be2 {[%emt 0:00:09]} Nxd4 {[%emt 0:00:
01]} 8. Qxd4 {[%emt 0:00:02]} Bg7 {[%emt 0:00:01]} 9. Be3 {[%emt 0:00:11]} O-O
{[%emt 0:00:01]} 10. Qd2 {[%emt 0:00:01]} a5 {[%emt 0:00:03]} 11. O-O {[%emt 0:
00:08]} a4 {[%emt 0:00:01]} 12. f3 {[%emt 0:00:17]} Qa5 {[%emt 0:00:05]} 13.
Rab1 {[%emt 0:00:17]} Be6 {[%emt 0:00:05]} 14. Nd5 {[%emt 0:00:37]} Nxd5 {
[%emt 0:00:08]} 15. Qxa5 {[%emt 0:00:35]} Rxa5 {[%emt 0:00:39]} 16. cxd5 {
[%emt 0:00:01]} Bd7 {[%emt 0:00:06]} 17. Rfc1 {[%emt 0:00:00]} Rc8 {[%emt 0:00:
12]} 18. Rxc8+ {[%emt 0:00:02]} Bxc8 {[%emt 0:00:01]} 19. Rc1 {[%emt 0:00:01]}
Ra8 {[%emt 0:00:08]} 20. b3 {[%emt 0:00:48]} axb3 21. axb3 {[%emt 0:00:01]} Ra1
{[%emt 0:00:07]} 22. Rxa1 {[%emt 0:00:08]} Bxa1 {[%emt 0:00:01]} 23. Kf2 {
[%emt 0:00:01]} f5 {[%emt 0:00:02]} 24. Bb5 {[%emt 0:00:07]} Kf7 {[%emt 0:00:
03]} 25. Ke2 {[%emt 0:00:02]} Be5 {[%emt 0:00:03]} 26. h3 {[%emt 0:00:01]} Kf6
{[%emt 0:00:28]} 27. Kd3 {[%emt 0:00:01]} g5 {[%emt 0:00:10]} 28. Be8 {[%emt 0:
00:01]} g4 {[%emt 0:00:23]} 29. hxg4 {[%emt 0:00:13]} fxg4 {[%emt 0:00:00]} 30.
f4 {[%emt 0:00:04]} Bb2 {[%emt 0:00:06]} 31. Bh5 {[%emt 0:00:03]} Bd7 {[%emt 0:
00:15]} 32. Kc4 {[%emt 0:00:02]} e6 {[%emt 0:00:15]} 33. Kb4 {[%emt 0:00:03]}
exd5 {[%emt 0:00:03]} 34. exd5 {[%emt 0:00:00]} Kf5 {[%emt 0:00:06]} 35. Ka5 {
[%emt 0:00:02]} Ke4 {[%emt 0:00:05]} 36. Bd2 {[%emt 0:00:01]} Kxd5 37. Kb6 Kd4
{[%emt 0:00:27]} 38. Kxb7 {[%emt 0:00:02]} Kd3 {[%emt 0:00:01]} 39. Ba5 {
[%emt 0:00:01]} Kc2 {[%emt 0:00:02]} 40. Kc7 {[%emt 0:00:01]} Bf5 {[%emt 0:00:
02]} 41. Kxd6 {[%emt 0:00:05]} Kxb3 {[%emt 0:00:01]} 42. Bf7+ {[%emt 0:00:03]}
Kc2 {[%emt 0:00:01]} 43. Be6 {[%emt 0:00:01]} Be4 {[%emt 0:00:03]} 44. Bd5 {
[%emt 0:00:05]} Bf5 {[%emt 0:00:02]} 45. Be6 {[%emt 0:00:02]} Be4 {[%emt 0:00:
01]} 46. Bd5 {[%emt 0:00:01]} Bf5 {[%emt 0:00:00]} 47. Be6 {[%emt 0:00:01]} 1-0

[Event "GER-ch Blitz 2019"]
[Site "Magdeburg"]
[Date "2019.05.25"]
[Round "11.8"]
[White "Heistermann, Till"]
[Black "Schulze, Marc"]
[Result "0-1"]
[ECO "A45"]
[WhiteElo "2181"]
[BlackElo "2220"]
[Annotator "NA"]
[PlyCount "98"]
[EventDate "2019.05.25"]
[EventType "tourn"]
[EventCountry "GER"]
[Tiebreak "Number of wins+Number of black wins"]
[SourceTitle "playchess.com"]
[Source "ChessBase"]
[SourceQuality "1"]
[TimeControl "180+2"]

1. d4 {[%emt 0:00:00]} Nf6 {[%emt 0:00:00]} 2. Bf4 {[%emt 0:00:00]} d6 {
[%emt 0:00:05]} 3. e3 {[%emt 0:00:02]} Bf5 {[%emt 0:00:01]} 4. Nf3 {[%emt 0:00:
02]} c6 {[%emt 0:00:01]} 5. Nbd2 {[%emt 0:00:03]} Nbd7 {[%emt 0:00:03]} 6. Be2
{[%emt 0:00:03]} h6 7. h3 Qc7 {[%emt 0:00:06]} 8. O-O {[%emt 0:00:03]} e5 {
[%emt 0:00:03]} 9. dxe5 {[%emt 0:00:04]} dxe5 {[%emt 0:00:01]} 10. Bh2 {
[%emt 0:00:01]} Rd8 {[%emt 0:00:15]} 11. Qc1 {[%emt 0:00:07]} Ne4 {[%emt 0:00:
12]} 12. Nc4 {[%emt 0:00:16]} f6 {[%emt 0:00:02]} 13. Nh4 {[%emt 0:00:03]} Be6
{[%emt 0:00:08]} 14. Bh5+ {[%emt 0:00:03]} Bf7 {[%emt 0:00:01]} 15. Bxf7+ Kxf7
{[%emt 0:00:01]} 16. f4 {[%emt 0:00:26]} exf4 {[%emt 0:00:15]} 17. Bxf4 {
[%emt 0:00:01]} Qc8 {[%emt 0:00:22]} 18. Nf5 {[%emt 0:00:01]} Nb6 {[%emt 0:00:
07]} 19. Nxb6 axb6 {[%emt 0:00:04]} 20. Nd4 {[%emt 0:00:20]} Bc5 {[%emt 0:00:
07]} 21. c3 {[%emt 0:00:04]} Rhe8 {[%emt 0:00:02]} 22. Qc2 {[%emt 0:00:02]}
Bxd4 {[%emt 0:00:09]} 23. exd4 {[%emt 0:00:04]} Kg8 {[%emt 0:00:07]} 24. Rae1 {
[%emt 0:00:00]} Qe6 {[%emt 0:00:14]} 25. Bc7 {[%emt 0:00:09]} Rd7 {[%emt 0:00:
09]} 26. Bxb6 {[%emt 0:00:02]} f5 {[%emt 0:00:06]} 27. Qb3 {[%emt 0:00:09]} Rd5
{[%emt 0:00:03]} 28. c4 {[%emt 0:00:05]} Rd7 {[%emt 0:00:01]} 29. Qf3 {[%emt 0:
00:20]} Rf7 {[%emt 0:00:13]} 30. Qd3 {[%emt 0:00:12]} Ra8 {[%emt 0:00:11]} 31.
a3 {[%emt 0:00:07]} Ra4 {[%emt 0:00:11]} 32. d5 {[%emt 0:00:03]} cxd5 {[%emt 0:
00:00]} 33. c5 {[%emt 0:00:07]} Qc6 {[%emt 0:00:08]} 34. Rd1 {[%emt 0:00:04]}
d4 {[%emt 0:00:05]} 35. b4 {[%emt 0:00:05]} Nc3 {[%emt 0:00:07]} 36. Ra1 {
[%emt 0:00:01]} Qe4 {[%emt 0:00:03]} 37. Qc4 {[%emt 0:00:10]} Ne2+ {[%emt 0:00:
05]} 38. Kh2 {[%emt 0:00:09]} Qe5+ {[%emt 0:00:01]} 39. Kh1 Ng3+ 40. Kg1 {
[%emt 0:00:05]} Nxf1 {[%emt 0:00:01]} 41. Qxf1 {[%emt 0:00:03]} f4 {[%emt 0:00:
03]} 42. Re1 {[%emt 0:00:05]} Qd5 {[%emt 0:00:06]} 43. Qd3 {[%emt 0:00:04]} Ra8
{[%emt 0:00:02]} 44. Re4 {[%emt 0:00:16]} f3 {[%emt 0:00:05]} 45. Qxd4 {
[%emt 0:00:03]} f2+ {[%emt 0:00:06]} 46. Kf1 {[%emt 0:00:05]} Qb3 {[%emt 0:00:
03]} 47. Rf4 {[%emt 0:00:08]} Rxf4 {[%emt 0:00:01]} 48. Qxf4 {[%emt 0:00:01]}
Qd1+ {[%emt 0:00:00]} 49. Kxf2 {[%emt 0:00:03]} Rf8 0-1

[Event "GER-ch Blitz 2019"]
[Site "Magdeburg"]
[Date "2019.05.25"]
[Round "11.9"]
[White "Zelbel, Patrick"]
[Black "Barzen, Pascal"]
[Result "1/2-1/2"]
[ECO "B10"]
[WhiteElo "2439"]
[BlackElo "2292"]
[Annotator "NA"]
[PlyCount "129"]
[EventDate "2019.05.25"]
[EventType "tourn"]
[EventCountry "GER"]
[Tiebreak "Number of wins+Number of black wins"]
[SourceTitle "playchess.com"]
[Source "ChessBase"]
[SourceQuality "1"]
[TimeControl "180+2"]

1. e4 {[%emt 0:00:00]} c6 {[%emt 0:00:00]} 2. c4 {[%emt 0:00:00]} d5 3. cxd5
cxd5 {[%emt 0:00:00]} 4. exd5 {[%emt 0:00:01]} Nf6 5. Nc3 Nxd5 {[%emt 0:00:01]}
6. Nf3 {[%emt 0:00:01]} Nc6 {[%emt 0:00:01]} 7. Bb5 {[%emt 0:00:01]} g6 {
[%emt 0:00:10]} 8. O-O {[%emt 0:00:06]} Bg7 {[%emt 0:00:02]} 9. Re1 {[%emt 0:
00:11]} O-O {[%emt 0:00:02]} 10. d4 {[%emt 0:00:07]} Bg4 {[%emt 0:00:03]} 11.
Be3 {[%emt 0:00:51]} Nxe3 12. fxe3 {[%emt 0:00:01]} e5 {[%emt 0:00:04]} 13.
Bxc6 {[%emt 0:00:34]} bxc6 {[%emt 0:00:01]} 14. dxe5 {[%emt 0:00:01]} Qb6 {
[%emt 0:00:14]} 15. Qd4 {[%emt 0:00:10]} Bxf3 {[%emt 0:00:07]} 16. Qxb6 {
[%emt 0:00:35]} axb6 17. gxf3 {[%emt 0:00:01]} Bxe5 {[%emt 0:00:02]} 18. Rec1 {
[%emt 0:00:15]} Rfd8 {[%emt 0:00:07]} 19. Rc2 {[%emt 0:00:03]} Rd3 {[%emt 0:00:
10]} 20. Kf2 {[%emt 0:00:00]} f5 {[%emt 0:00:36]} 21. Ke2 {[%emt 0:00:08]} Rd6
{[%emt 0:00:14]} 22. f4 {[%emt 0:00:09]} Bf6 {[%emt 0:00:05]} 23. a3 {[%emt 0:
00:02]} Re8 {[%emt 0:00:01]} 24. Rd1 {[%emt 0:00:03]} Rde6 {[%emt 0:00:11]} 25.
Rd3 {[%emt 0:00:00]} Be7 {[%emt 0:00:05]} 26. Kf3 {[%emt 0:00:07]} Bc5 {
[%emt 0:00:11]} 27. Nd1 {[%emt 0:00:01]} h6 {[%emt 0:00:08]} 28. b4 {[%emt 0:
00:03]} Bf8 {[%emt 0:00:01]} 29. Rdc3 {[%emt 0:00:01]} c5 {[%emt 0:00:07]} 30.
bxc5 {[%emt 0:00:05]} Bxc5 {[%emt 0:00:01]} 31. a4 {[%emt 0:00:12]} g5 {
[%emt 0:00:01]} 32. fxg5 {[%emt 0:00:03]} hxg5 {[%emt 0:00:01]} 33. h3 {
[%emt 0:00:01]} Rh6 {[%emt 0:00:16]} 34. Nf2 {[%emt 0:00:00]} Rhe6 {[%emt 0:00:
03]} 35. Nd1 {[%emt 0:00:01]} Re5 {[%emt 0:00:04]} 36. Rg2 {[%emt 0:00:04]} Be7
{[%emt 0:00:11]} 37. Rc6 {[%emt 0:00:00]} Kf7 {[%emt 0:00:06]} 38. Rxb6 {
[%emt 0:00:03]} Bc5 {[%emt 0:00:08]} 39. Rb3 {[%emt 0:00:01]} Kf6 {[%emt 0:00:
09]} 40. Rc3 {[%emt 0:00:02]} Rh8 {[%emt 0:00:04]} 41. Nf2 {[%emt 0:00:03]}
Rhe8 {[%emt 0:00:03]} 42. Nd1 {[%emt 0:00:01]} Ra8 {[%emt 0:00:05]} 43. Rgc2 {
[%emt 0:00:03]} g4+ {[%emt 0:00:09]} 44. hxg4 {[%emt 0:00:01]} fxg4+ {[%emt 0:
00:01]} 45. Kxg4 {[%emt 0:00:03]} Rxa4+ {[%emt 0:00:00]} 46. Kf3 {[%emt 0:00:
01]} Rf5+ {[%emt 0:00:01]} 47. Ke2 {[%emt 0:00:03]} Bd6 {[%emt 0:00:08]} 48.
Rc6 {[%emt 0:00:01]} Ke7 {[%emt 0:00:01]} 49. R6c4 {[%emt 0:00:01]} Ra3 {
[%emt 0:00:03]} 50. R4c3 {[%emt 0:00:01]} Ra1 {[%emt 0:00:02]} 51. Rc1 {
[%emt 0:00:01]} Ra2+ {[%emt 0:00:01]} 52. R1c2 {[%emt 0:00:01]} Ra4 {[%emt 0:
00:02]} 53. Rc4 {[%emt 0:00:00]} Ra3 {[%emt 0:00:01]} 54. Re4+ {[%emt 0:00:02]}
Kd7 {[%emt 0:00:01]} 55. Rd4 {[%emt 0:00:01]} Ke7 {[%emt 0:00:01]} 56. Rd3 {
[%emt 0:00:01]} Ra4 {[%emt 0:00:03]} 57. Rcd2 {[%emt 0:00:01]} Be5 {[%emt 0:00:
00]} 58. Rd5 {[%emt 0:00:04]} Ke6 {[%emt 0:00:05]} 59. Rb5 {[%emt 0:00:01]} Rh4
{[%emt 0:00:02]} 60. Rb6+ {[%emt 0:00:03]} Ke7 {[%emt 0:00:02]} 61. Rb7+ {
[%emt 0:00:03]} Ke6 {[%emt 0:00:02]} 62. Rb6+ Ke7 63. Rb7+ {[%emt 0:00:06]} Ke6
{[%emt 0:00:01]} 64. Rb6+ {[%emt 0:00:01]} Ke7 {[%emt 0:00:01]} 65. Rb7+
1/2-1/2

[Event "GER-ch Blitz 2019"]
[Site "Magdeburg"]
[Date "2019.05.25"]
[Round "11.10"]
[White "Hebbinghaus, Holger"]
[Black "Kopylov, Daniel"]
[Result "1-0"]
[ECO "B20"]
[WhiteElo "2310"]
[BlackElo "2263"]
[Annotator "NA"]
[PlyCount "45"]
[EventDate "2019.05.25"]
[EventType "tourn"]
[EventCountry "GER"]
[Tiebreak "Number of wins+Number of black wins"]
[SourceTitle "playchess.com"]
[Source "ChessBase"]
[SourceQuality "1"]
[TimeControl "180+2"]

1. e4 {[%emt 0:00:00]} c5 {[%emt 0:00:00]} 2. Be2 {[%emt 0:00:00]} Nc6 {
[%emt 0:00:01]} 3. f4 {[%emt 0:00:00]} e6 {[%emt 0:00:04]} 4. Nf3 {[%emt 0:00:
02]} d5 {[%emt 0:00:01]} 5. d3 {[%emt 0:00:00]} dxe4 {[%emt 0:00:06]} 6. dxe4 {
[%emt 0:00:01]} Qxd1+ 7. Bxd1 {[%emt 0:00:02]} g6 {[%emt 0:00:16]} 8. c3 {
[%emt 0:00:08]} Bg7 {[%emt 0:00:03]} 9. Be3 {[%emt 0:00:09]} b6 {[%emt 0:00:02]
} 10. Nbd2 {[%emt 0:00:14]} e5 {[%emt 0:00:24]} 11. Ba4 {[%emt 0:00:49]} Bd7 {
[%emt 0:00:02]} 12. Nc4 {[%emt 0:00:18]} Nh6 {[%emt 0:00:57]} 13. fxe5 {
[%emt 0:00:28]} Ng4 {[%emt 0:00:04]} 14. Nd6+ {[%emt 0:00:13]} Ke7 {[%emt 0:00:
14]} 15. Bg5+ {[%emt 0:00:07]} f6 {[%emt 0:00:02]} 16. exf6+ {[%emt 0:00:04]}
Bxf6 {[%emt 0:00:02]} 17. Bxf6+ {[%emt 0:00:04]} Nxf6 {[%emt 0:00:01]} 18.
O-O-O {[%emt 0:00:04]} Nd8 {[%emt 0:00:23]} 19. Bxd7 {[%emt 0:00:18]} Nxd7 {
[%emt 0:00:01]} 20. Rd2 {[%emt 0:00:06]} Nf7 {[%emt 0:00:14]} 21. Nxf7 {
[%emt 0:00:01]} Kxf7 {[%emt 0:00:03]} 22. Rxd7+ {[%emt 0:00:01]} Ke6 {[%emt 0:
00:01]} 23. Rhd1 {[%emt 0:00:02] Kd5} 1-0

[Event "GER-ch Blitz 2019"]
[Site "Magdeburg"]
[Date "2019.05.25"]
[Round "11.11"]
[White "Schmaltz, Roland"]
[Black "Krause, Benedict"]
[Result "1-0"]
[ECO "B45"]
[WhiteElo "2461"]
[BlackElo "2434"]
[Annotator "ChessBase"]
[PlyCount "49"]
[EventDate "2019.05.25"]
[EventType "tourn"]
[EventCountry "GER"]
[Tiebreak "Number of wins+Number of black wins"]
[SourceTitle "playchess.com"]
[Source "ChessBase"]
[SourceQuality "1"]
[TimeControl "180+2"]

1. e4 {[%emt 0:00:00]} c5 {[%emt 0:00:00]} 2. Nf3 {[%emt 0:00:00]} e6 {[%emt 0:
00:00]} 3. d4 {[%emt 0:00:00]} cxd4 {[%emt 0:00:01]} 4. Nxd4 {[%emt 0:00:00]}
Nc6 {[%emt 0:00:01]} 5. Nc3 {[%emt 0:00:01]} Nf6 {[%emt 0:00:01]} 6. Be3 {
[%emt 0:00:05]} Bb4 {[%emt 0:00:01]} 7. Nxc6 {[%emt 0:00:05]} bxc6 {[%emt 0:00:
02]} 8. Qd3 {[%emt 0:00:16]} O-O {[%emt 0:00:19]} 9. Be2 {[%emt 0:00:14]} d5 {
[%emt 0:00:01]} 10. e5 {[%emt 0:00:13]} Ne4 {[%emt 0:00:33]} 11. O-O {[%emt 0:
00:01]} Nxc3 12. bxc3 {[%emt 0:00:02]} Ba5 {[%emt 0:00:02]} 13. Bc5 {[%emt 0:
00:04]} Re8 {[%emt 0:00:03]} 14. Qg3 {[%emt 0:00:10]} Bb6 {[%emt 0:00:05]} 15.
Bd4 {[%emt 0:00:30]} Bd7 {[%emt 0:00:21]} 16. Rfd1 {[%emt 0:00:09]} Rb8 {
[%emt 0:00:02]} 17. Bd3 {[%emt 0:00:09]} c5 {[%emt 0:00:10]} 18. Be3 {[%emt 0:
00:01]} c4 {[%emt 0:00:06]} 19. Bg5 {[%emt 0:00:10]} Qc8 {[%emt 0:00:24]} 20.
Bf6 {[%emt 0:00:14]} g6 {[%emt 0:00:01]} 21. Be2 {[%emt 0:00:06]} Bd8 {[%emt 0:
00:02]} 22. Qg5 {[%emt 0:00:05]} Qc5 {[%emt 0:00:57]} 23. Rd4 {[%emt 0:00:09]}
Bxf6 {[%emt 0:00:06]} 24. exf6 {[%emt 0:00:02]} e5 {[%emt 0:00:07]} 25. Rxd5 {
[%emt 0:00:06]} 1-0

[Event "GER-ch Blitz 2019"]
[Site "Magdeburg"]
[Date "2019.05.25"]
[Round "11.12"]
[White "Schneider, Ilja"]
[Black "Stein, Robert"]
[Result "1-0"]
[ECO "A45"]
[WhiteElo "2494"]
[BlackElo "2318"]
[Annotator "ChessBase"]
[PlyCount "43"]
[EventDate "2019.05.25"]
[EventType "tourn"]
[EventCountry "GER"]
[Tiebreak "Number of wins+Number of black wins"]
[SourceTitle "playchess.com"]
[Source "ChessBase"]
[SourceQuality "1"]
[TimeControl "180+2"]

1. d4 {[%emt 0:00:00]} Nf6 {[%emt 0:00:00]} 2. Bg5 {[%emt 0:00:01]} d5 {
[%emt 0:00:09]} 3. e3 {[%emt 0:00:00]} Nbd7 {[%emt 0:00:04]} 4. Bd3 {[%emt 0:
00:02]} g6 {[%emt 0:00:01]} 5. Nf3 {[%emt 0:00:01]} Bg7 {[%emt 0:00:00]} 6. O-O
{[%emt 0:00:02]} O-O {[%emt 0:00:02]} 7. c4 {[%emt 0:00:01]} c6 {[%emt 0:00:06]
} 8. Nc3 {[%emt 0:00:01]} a6 {[%emt 0:00:04]} 9. Qe2 {[%emt 0:00:06]} b5 {
[%emt 0:00:09]} 10. cxd5 {[%emt 0:00:01]} cxd5 {[%emt 0:00:01]} 11. a4 {
[%emt 0:00:00]} b4 {[%emt 0:00:01]} 12. Na2 {[%emt 0:00:01]} a5 {[%emt 0:00:00]
} 13. Nc1 {[%emt 0:00:01]} Qb6 {[%emt 0:00:05]} 14. Nb3 {[%emt 0:00:02]} Bb7 {
[%emt 0:00:07]} 15. Bb5 {[%emt 0:00:12]} Rfc8 {[%emt 0:00:17]} 16. Rfc1 {
[%emt 0:00:01]} e6 {[%emt 0:00:09]} 17. Bxf6 {[%emt 0:00:18]} Nxf6 {[%emt 0:00:
02]} 18. Nc5 {[%emt 0:00:02]} Bf8 {[%emt 0:00:10]} 19. Ne5 {[%emt 0:00:15]}
Bxc5 {[%emt 0:00:10]} 20. dxc5 {[%emt 0:00:01]} Rxc5 {[%emt 0:00:00]} 21. Qf3 {
[%emt 0:00:02]} Kg7 {[%emt 0:00:06]} 22. Qxf6+ {[%emt 0:00:02]} 1-0

[Event "GER-ch Blitz 2019"]
[Site "Magdeburg"]
[Date "2019.05.25"]
[Round "11.13"]
[White "Zuyev, Igor"]
[Black "Carow, Johannes"]
[Result "1/2-1/2"]
[ECO "B13"]
[WhiteElo "2447"]
[BlackElo "2445"]
[Annotator "NA"]
[PlyCount "48"]
[EventDate "2019.05.25"]
[EventType "tourn"]
[EventCountry "GER"]
[Tiebreak "Number of wins+Number of black wins"]
[SourceTitle "playchess.com"]
[Source "ChessBase"]
[SourceQuality "1"]
[TimeControl "180+2"]

1. e4 {[%emt 0:00:00]} c6 {[%emt 0:00:00]} 2. d4 {[%emt 0:00:00]} d5 {[%emt 0:
00:00]} 3. exd5 {[%emt 0:00:01]} cxd5 {[%emt 0:00:01]} 4. Bd3 {[%emt 0:00:02]}
Nc6 {[%emt 0:00:01]} 5. c3 {[%emt 0:00:01]} Qc7 {[%emt 0:00:01]} 6. Ne2 {
[%emt 0:00:19]} Bg4 {[%emt 0:00:02]} 7. f3 {[%emt 0:00:04]} Bd7 {[%emt 0:00:05]
} 8. Bf4 {[%emt 0:00:05]} e5 {[%emt 0:00:02]} 9. dxe5 {[%emt 0:00:05]} Nxe5 {
[%emt 0:00:01]} 10. Bc2 {[%emt 0:00:10]} Nf6 {[%emt 0:00:06]} 11. O-O {[%emt 0:
00:06]} Bd6 {[%emt 0:00:02]} 12. Nd2 {[%emt 0:00:06]} O-O {[%emt 0:00:05]} 13.
Bg3 {[%emt 0:00:04]} Nh5 {[%emt 0:00:14]} 14. Bf2 {[%emt 0:00:06]} Nc4 {
[%emt 0:00:11]} 15. Nxc4 {[%emt 0:00:07]} Bxh2+ {[%emt 0:00:01]} 16. Kh1 {
[%emt 0:00:02]} dxc4 {[%emt 0:00:02]} 17. g3 {[%emt 0:00:10]} Bxg3 {[%emt 0:00:
30]} 18. Nxg3 {[%emt 0:00:06]} Nxg3+ {[%emt 0:00:02]} 19. Bxg3 {[%emt 0:00:05]}
Qxg3 {[%emt 0:00:01]} 20. Qxd7 {[%emt 0:00:05]} Qh4+ {[%emt 0:00:02]} 21. Kg1 {
[%emt 0:00:07]} Qg3+ {[%emt 0:00:32]} 22. Kh1 {[%emt 0:00:02]} Qh4+ {[%emt 0:
00:03]} 23. Kg1 {[%emt 0:00:14]} Qg3+ {[%emt 0:00:03]} 24. Kh1 {[%emt 0:00:03]}
Qh4+ {[%emt 0:00:01]} 1/2-1/2

[Event "GER-ch Blitz 2019"]
[Site "Magdeburg"]
[Date "2019.05.25"]
[Round "11.14"]
[White "Schulz, Karsten"]
[Black "Frischmann, Rick"]
[Result "1/2-1/2"]
[ECO "A04"]
[WhiteElo "2227"]
[BlackElo "2320"]
[Annotator "NA"]
[PlyCount "131"]
[EventDate "2019.05.25"]
[EventType "tourn"]
[EventCountry "GER"]
[Tiebreak "Number of wins+Number of black wins"]
[SourceTitle "playchess.com"]
[Source "ChessBase"]
[SourceQuality "1"]
[TimeControl "180+2"]

1. Nf3 {[%emt 0:00:00]} Nc6 {[%emt 0:00:00]} 2. d4 {[%emt 0:00:00]} d5 {
[%emt 0:00:00]} 3. Bf4 {[%emt 0:00:01]} Bg4 {[%emt 0:00:00]} 4. e3 e6 5. h3 {
[%emt 0:00:03]} Bh5 {[%emt 0:00:02]} 6. Be2 {[%emt 0:00:08]} Bd6 {[%emt 0:00:
01]} 7. Bxd6 {[%emt 0:00:03]} cxd6 {[%emt 0:00:01]} 8. Nbd2 {[%emt 0:00:08]}
Nf6 {[%emt 0:00:01]} 9. c4 {[%emt 0:00:05]} dxc4 {[%emt 0:00:02]} 10. Nxc4 {
[%emt 0:00:02]} Bxf3 {[%emt 0:00:03]} 11. Bxf3 {[%emt 0:00:04]} d5 {[%emt 0:00:
01]} 12. Nd2 {[%emt 0:00:17]} Qb6 {[%emt 0:00:02]} 13. Qb3 {[%emt 0:00:05]} Qa5
{[%emt 0:00:01]} 14. Qc3 {[%emt 0:00:06]} Qxc3 {[%emt 0:00:08]} 15. bxc3 {
[%emt 0:00:01]} Rc8 {[%emt 0:00:02]} 16. c4 {[%emt 0:00:11]} dxc4 {[%emt 0:00:
03]} 17. Nxc4 {[%emt 0:00:06]} Ke7 {[%emt 0:00:27]} 18. Nd2 {[%emt 0:00:21]}
Na5 {[%emt 0:00:10]} 19. Ke2 {[%emt 0:00:04]} Rc3 {[%emt 0:00:18]} 20. Rhc1 {
[%emt 0:00:04]} Rhc8 {[%emt 0:00:00]} 21. Rxc3 {[%emt 0:00:01]} Rxc3 {[%emt 0:
00:01]} 22. Nb3 {[%emt 0:00:20]} Rc2+ {[%emt 0:00:54]} 23. Kd3 {[%emt 0:00:15]}
Nxb3 {[%emt 0:00:05]} 24. axb3 {[%emt 0:00:09]} Rb2 {[%emt 0:00:15]} 25. Rxa7 {
[%emt 0:00:15]} Rxb3+ {[%emt 0:00:02]} 26. Kc2 {[%emt 0:00:04]} Rb6 {[%emt 0:
00:03]} 27. Bxb7 {[%emt 0:00:12]} g6 {[%emt 0:00:25]} 28. Kc3 {[%emt 0:00:18]}
Kf8 {[%emt 0:00:01]} 29. Bf3 {[%emt 0:00:02]} h5 {[%emt 0:00:09]} 30. e4 {
[%emt 0:00:01]} Rc6+ {[%emt 0:00:10]} 31. Kd3 {[%emt 0:00:01]} Ne8 {[%emt 0:00:
11]} 32. e5 {[%emt 0:00:05]} Rb6 {[%emt 0:00:00]} 33. Ra8 {[%emt 0:00:03]} Ke7
{[%emt 0:00:03]} 34. Kc4 {[%emt 0:00:04]} Rb2 {[%emt 0:00:03]} 35. d5 {[%emt 0:
00:06]} exd5+ {[%emt 0:00:07]} 36. Bxd5 {[%emt 0:00:06]} Nc7 {[%emt 0:00:07]}
37. Ra7 {[%emt 0:00:04]} Rc2+ {[%emt 0:00:01]} 38. Kd3 {[%emt 0:00:05]} Rc5 {
[%emt 0:00:01]} 39. Ke4 {[%emt 0:00:05]} Kf8 {[%emt 0:00:02]} 40. Rxc7 {
[%emt 0:00:09]} Rxc7 {[%emt 0:00:02]} 41. f4 {[%emt 0:00:02]} Rc2 {[%emt 0:00:
01]} 42. Ke3 {[%emt 0:00:02]} Ke7 {[%emt 0:00:03]} 43. Be4 {[%emt 0:00:02]}
Rc3+ {[%emt 0:00:02]} 44. Kd4 {[%emt 0:00:01]} Rc1 {[%emt 0:00:01]} 45. Ke3 {
[%emt 0:00:01]} Ra1 {[%emt 0:00:02]} 46. Bd5 {[%emt 0:00:02]} Ra3+ {[%emt 0:00:
09]} 47. Ke4 {[%emt 0:00:00]} Ra4+ {[%emt 0:00:00]} 48. Ke3 {[%emt 0:00:01]} f6
{[%emt 0:00:04]} 49. exf6+ {[%emt 0:00:02]} Kxf6 {[%emt 0:00:01]} 50. Be4 {
[%emt 0:00:00]} Ra3+ {[%emt 0:00:02]} 51. Kf2 {[%emt 0:00:02]} h4 {[%emt 0:00:
03]} 52. Ke2 {[%emt 0:00:03]} g5 {[%emt 0:00:01]} 53. fxg5+ {[%emt 0:00:01]}
Kxg5 {[%emt 0:00:00]} 54. Kf2 {[%emt 0:00:02]} Kf4 {[%emt 0:00:01]} 55. Bd5 {
[%emt 0:00:01]} Rc3 {[%emt 0:00:03]} 56. Bb7 {[%emt 0:00:03]} Rc2+ {[%emt 0:00:
01]} 57. Kf1 {[%emt 0:00:02]} Kg3 {[%emt 0:00:01]} 58. Bf3 {[%emt 0:00:04]} Rb2
{[%emt 0:00:01]} 59. Ke1 {[%emt 0:00:02]} Rxg2 {[%emt 0:00:02]} 60. Bxg2 {
[%emt 0:00:01]} Kxg2 {[%emt 0:00:01]} 61. Ke2 {[%emt 0:00:00]} Kxh3 {[%emt 0:
00:02]} 62. Kf2 {[%emt 0:00:01]} Kh2 {[%emt 0:00:00]} 63. Kf1 {[%emt 0:00:00]}
h3 {[%emt 0:00:01]} 64. Kf2 {[%emt 0:00:01]} Kh1 65. Kf1 h2 {[%emt 0:00:01]}
66. Kf2 {[%emt 0:00:01]} 1/2-1/2